bitfinex-derivatives/quotes_SOLF0:USTF0_20250919
["timestamp","ask_amount","ask_price","bid_price","bid_amount"]
[1758318982431,6.89,238.23,238.19,0.02742656]
[1758318982830,3.7754,238.24,238.19,0.02742656]
[1758318983235,6.89,238.23,238.19,0.02742656]
[1758318983431,3.7754,238.24,238.19,0.02742656]
[1758318983631,6.89,238.23,238.19,0.02742656]
[1758318983835,6.89,238.21,238.19,0.02742656]
[1758318984024,3.7758,238.22,238.19,0.02742656]
[1758318984225,6.89,238.21,238.19,0.02742656]
[1758318984834,3.7758,238.22,238.19,0.02742656]
[1758318985426,6.89,238.21,238.19,0.02742656]
[1758318986934,3.7758,238.22,238.19,0.02742656]
[1758318987334,6.89,238.21,238.19,0.02742656]
[1758318987734,3.7758,238.22,238.19,0.02742656]
[1758318987935,6.89,238.21,238.19,0.02742656]
[1758318988128,3.7758,238.22,238.19,0.02742656]
[1758318988331,6.89,238.21,238.19,0.02742656]
[1758318988531,6.73,238.21,238.19,0.02742656]
[1758318988725,106.8958,238.22,238.19,0.02742656]
[1758318989130,6.73,238.21,238.19,0.02742656]
[1758318989331,106.8958,238.22,238.19,6.80742656]
[1758318989537,113.5858,238.22,238.19,6.80742656]
[1758318989736,6.73,238.21,238.19,6.80742656]
[1758318989932,6.73,238.21,238.19,0.02742656]
[1758318990333,106.8558,238.22,238.19,0.02742656]
[1758318990736,3.7758,238.22,238.19,0.02742656]
[1758318990936,6.73,238.2,238.19,0.02742656]
[1758318994241,109.75,238.2,238.19,0.02742656]
[1758318995838,6.73,238.18,238.11,10.5573]
[1758318997137,0.02934999,238.17,238.11,10.5573]
[1758319005547,0.02934999,238.17,238.11,3.7773]
[1758319005746,0.02934999,238.17,238.12,6.78]
[1758319006146,0.02934999,238.17,238.11,3.7773]
[1758319006542,0.02934999,238.17,238.12,6.78]
[1758319007449,0.02934999,238.17,238.11,3.7773]
[1758319008245,0.02934999,238.17,238.12,6.78]
[1758319008643,0.02934999,238.17,238.11,3.7773]
[1758319009546,0.02934999,238.17,238.12,6.78]
[1758319009747,0.02934999,238.17,238.11,3.7773]
[1758319010049,0.02934999,238.17,238.12,6.78]
[1758319010747,0.02934999,238.17,238.11,3.7773]
[1758319011447,6.75934999,238.17,238.12,6.78]
[1758319011649,6.75934999,238.17,238.11,3.7773]
[1758319011849,6.75934999,238.17,238.12,6.78]
[1758319012547,6.75934999,238.17,238.11,3.7773]
[1758319012754,6.75934999,238.17,238.12,6.78]
[1758319012945,6.75934999,238.17,238.11,3.7773]
[1758319014250,6.75934999,238.17,238.12,6.78]
[1758319014751,6.75934999,238.17,238.11,3.7773]
[1758319015649,6.75934999,238.17,238.12,6.78]
[1758319015850,6.75934999,238.17,238.11,3.7773]
[1758319016152,6.75934999,238.17,238.12,6.78]
[1758319016453,6.75934999,238.17,238.11,3.7773]
[1758319016649,6.75934999,238.17,238.12,6.78]
[1758319017044,6.75934999,238.17,238.11,3.7773]
[1758319017451,6.75934999,238.17,238.12,6.78]
[1758319017654,0.02934999,238.17,238.11,3.7773]
[1758319017854,0.02934999,238.17,238.12,6.78]
[1758319018055,0.02934999,238.17,238.11,3.7773]
[1758319019158,7.21934999,238.17,238.12,6.73]
[1758319019750,7.21934999,238.17,238.11,3.7773]
[1758319020154,7.21934999,238.17,238.12,6.73]
[1758319020455,7.21934999,238.17,238.11,3.7773]
[1758319020659,7.21934999,238.17,238.12,3.7772]
[1758319021059,7.21934999,238.17,238.13,6.73]
[1758319021655,7.21934999,238.17,238.12,3.7772]
[1758319022160,7.21934999,238.17,238.13,6.73]
[1758319022456,7.21934999,238.17,238.08,58.7685]
[1758319022654,7.21934999,238.17,238.14,6.73]
[1758319025061,7.21934999,238.17,238.13,3.7771]
[1758319025257,7.21934999,238.17,238.14,6.73]
[1758319028563,7.21934999,238.17,238.15,10.5068]
[1758319028758,0.02934999,238.17,238.16,6.73]
[1758319029364,0.02934999,238.17,238.16,7.15]
[1758319030959,11.9059853,238.27,238.19,3.7762]
[1758319031159,11.9059853,238.27,238.17,6.73]
[1758319031359,4.7159853,238.27,238.17,6.73]
[1758319031859,5.44674767,238.28,238.17,6.73]
[1758319032462,5.44674767,238.28,238.21,6.73]
[1758319032858,5.44674767,238.28,238.22,3.7756]
[1758319034164,0.73076237,238.28,238.22,3.7756]
[1758319037664,0.73076237,238.28,238.23,6.73]
[1758319038163,7.19,238.27,238.24,6.73]
[1758319038962,7.19,238.27,238.24,10.5053]
[1758319039169,7.19,238.27,238.25,6.73]
[1758319040058,0.73076237,238.28,238.24,3.7753]
[1758319040262,110.36076237,238.28,238.25,6.73]
[1758319041362,7.19,238.27,238.25,6.73]
[1758319041565,7.19,238.27,238.25,10.5051]
[1758319046071,103.11076237,238.28,238.27,6.73]
[1758319046072,0.73076237,238.28,238.27,6.73]
[1758319046375,14.88,238.35,238.27,7.15]
[1758319046574,14.88,238.35,238.27,6.73]
[1758319047778,14.88,238.35,238.32,3.7741]
[1758319047974,22.07,238.35,238.32,10.5041]
[1758319048875,22.07,238.35,238.34,3.7738]
[1758319049472,22.80052459,238.35,238.34,3.7738]
[1758319050880,7.92052459,238.35,238.34,3.7738]
[1758319052579,0.73052459,238.35,238.34,10.6238]
[1758319052980,7.57052459,238.35,238.34,3.7738]
[1758319065187,6.84,238.42,238.35,3.7735]
[1758319065393,72.68,238.42,238.35,3.7735]
[1758319065587,6.84,238.38,238.35,10.6235]
[1758319065782,0.73046326,238.39,238.36,0.02788793]
[1758319066084,7.57046326,238.39,238.36,6.87788793]
[1758319066287,7.57046326,238.39,238.37,6.85]
[1758319068189,7.57046326,238.39,238.36,0.02788793]
[1758319068190,0.73046326,238.39,238.36,0.02788793]
[1758319068382,0.73046326,238.39,238.37,6.85]
[1758319072696,0.73046326,238.39,238.38,6.85]
[1758319074092,0.73046326,238.39,238.38,10.43051114]
[1758319074297,0.73046326,238.39,238.38,10.43154086]
[1758319075597,6.84,238.45,238.4,3.7728]
[1758319075798,102.32,238.46,238.4,3.7728]
[1758319076102,0.73033295,238.42,238.4,10.6228]
[1758319076307,102.32,238.46,238.4,10.6228]
[1758319076602,0.73028697,238.45,238.4,10.6228]
[1758319076802,6.84,238.44,238.4,10.6228]
[1758319076994,6.84,238.44,238.41,6.85]
[1758319077193,0.73028697,238.45,238.41,6.85]
[1758319077503,6.84,238.44,238.41,6.85]
[1758319079307,0.73028697,238.45,238.41,6.85]
[1758319079508,6.78,238.44,238.41,6.85]
[1758319080006,0.73028697,238.45,238.41,6.85]
[1758319080205,6.78,238.44,238.41,6.85]
[1758319081605,6.78,238.44,238.42,3.7726]
[1758319083105,6.78,238.44,238.42,10.4126]
[1758319084400,0.73028697,238.45,238.42,10.4126]
[1758319084603,0.73028697,238.45,238.43,6.64]
[1758319085003,103.01028697,238.45,238.43,10.4123]
[1758319085309,109.79028697,238.45,238.43,10.4123]
[1758319090512,6.78,238.44,238.43,3.7723]
[1758319090711,66.5,238.44,238.43,3.7723]
[1758319091215,0.73028697,238.45,238.44,6.64]
[1758319100928,4.7159853,238.56,238.46,6.64]
[1758319101226,6.78,238.55,238.46,6.64]
[1758319101626,6.78,238.55,238.49,0.03022193]
[1758319101830,6.78,238.55,238.53,3.7708]
[1758319102030,6.78,238.55,238.49,0.03022193]
[1758319102424,11.4959853,238.55,238.49,0.03022193]
[1758319102626,21.44,238.57,238.49,0.03022193]
[1758319102627,6.78,238.53,238.49,0.03022193]
[1758319103328,11.4959853,238.53,238.49,0.03022193]
[1758319104129,12.22612671,238.53,238.49,0.03022193]
[1758319104328,76.62,238.52,238.49,0.03022193]
[1758319104530,6.78,238.51,238.49,0.03022193]
[1758319104731,60.14,238.5,238.49,0.03022193]
[1758319106430,6.78,238.5,238.49,0.03022193]
[1758319111830,109.04,238.5,238.49,0.03022193]
[1758319123144,109.02,238.5,238.49,0.03022193]
[1758319126045,6.78,238.5,238.49,0.03022193]
[1758319126246,109.02,238.5,238.49,0.03022193]
[1758319128049,6.78,238.5,238.49,0.03022193]
[1758319128351,109.02,238.5,238.49,0.03022193]
[1758319128548,6.78,238.5,238.49,0.03022193]
[1758319128953,59.72,238.5,238.49,0.03022193]
[1758319129549,6.78,238.5,238.49,0.03022193]
[1758319129746,100.34,238.5,238.49,7.01022193]
[1758319130356,108.91,238.5,238.49,0.03022193]
[1758319134254,108.91,238.5,238.49,7.01022193]
[1758319134255,102.24,238.5,238.49,7.01022193]
[1758319135156,102.24,238.5,238.49,0.03022193]
[1758319135356,102.24,238.5,238.49,7.01022193]
[1758319135858,4.7159853,238.52,238.5,6.98]
[1758319136057,102.24,238.51,238.5,6.98]
[1758319137662,102.22,238.52,238.51,6.98]
[1758319140264,108.77,238.52,238.5,3.7713]
[1758319141364,6.55,238.52,238.5,3.7713]
[1758319141659,108.77,238.52,238.5,3.7713]
[1758319141859,4.7159853,238.55,238.5,3.7713]
[1758319142166,106.9359853,238.55,238.5,3.7713]
[1758319142359,102.22,238.55,238.51,6.7]
[1758319142564,108.77,238.55,238.5,3.7713]
[1758319142762,108.77,238.55,238.51,6.7]
[1758319142964,108.77,238.55,238.5,3.7713]
[1758319143459,108.77,238.55,238.51,6.7]
[1758319145067,102.22,238.55,238.51,6.7]
[1758319145265,6.55,238.54,238.51,6.7]
[1758319146769,5.44595058,238.56,238.53,6.7]
[1758319146770,6.55,238.56,238.53,6.7]
[1758319147070,68.06139951,238.68,238.49,6.73022193]
[1758319147071,11.2659853,238.58,238.49,6.73022193]
[1758319147266,6.55,238.56,238.49,6.73022193]
[1758319147572,6.55,238.56,238.49,6.7]
[1758319147867,6.55,238.56,238.5,3.7713]
[1758319148063,6.55,238.56,238.5,3.79882615]
[1758319162882,4.7159853,238.58,238.52,3.771]
[1758319163285,4.7159853,238.58,238.52,10.471]
[1758319163680,6.55,238.57,238.52,10.471]
[1758319163880,4.7159853,238.58,238.52,10.471]
[1758319164280,6.55,238.57,238.52,10.471]
[1758319164484,4.7159853,238.58,238.52,10.471]
[1758319164987,6.55,238.57,238.52,10.471]
[1758319165186,4.7159853,238.58,238.52,10.471]
[1758319165487,6.55,238.57,238.52,10.471]
[1758319165683,4.7159853,238.58,238.52,10.471]
[1758319166085,6.55,238.57,238.52,10.471]
[1758319166786,4.7159853,238.58,238.52,10.471]
[1758319167382,6.55,238.57,238.52,10.471]
[1758319167586,4.7159853,238.58,238.52,10.471]
[1758319168275,6.55,238.57,238.52,10.471]
[1758319168478,4.7159853,238.58,238.52,10.471]
[1758319168676,4.7159853,238.58,238.5,3.79882615]
[1758319168677,6.75,238.57,238.5,3.79882615]
[1758319168885,11.4659853,238.57,238.5,3.79882615]
[1758319169889,6.75,238.57,238.5,3.79882615]
[1758319170192,11.4659853,238.57,238.5,3.79882615]
[1758319171990,11.4659853,238.57,238.51,6.66]
[1758319175290,4.7159853,238.56,238.51,6.66]
[1758319175589,6.75,238.55,238.5,3.79882615]
[1758319176093,11.4659853,238.56,238.5,10.45882615]
[1758319179292,4.7159853,238.55,238.5,10.45882615]
[1758319179601,6.75,238.54,238.5,3.79882615]
[1758319179787,6.75,238.54,238.51,6.66]
[1758319180396,6.75,238.54,238.5,3.79882615]
[1758319180593,6.75,238.54,238.51,6.66]
[1758319181795,6.75,238.54,238.5,3.79882615]
[1758319181996,6.75,238.54,238.51,6.66]
[1758319182190,6.75,238.54,238.5,3.79882615]
[1758319182397,11.4659853,238.55,238.5,3.79882615]
[1758319182598,11.4659853,238.55,238.51,6.66]
[1758319182988,11.4659853,238.55,238.5,3.79882615]
[1758319183193,11.4659853,238.55,238.51,6.66]
[1758319183588,6.75,238.54,238.5,3.79882615]
[1758319183792,6.75,238.54,238.51,6.66]
[1758319183998,6.75,238.54,238.5,3.79882615]
[1758319184299,4.7159853,238.55,238.51,6.66]
[1758319184492,4.7159853,238.56,238.5,3.79882615]
[1758319184692,4.7159853,238.56,238.51,6.66]
[1758319184897,4.7159853,238.56,238.5,3.79882615]
[1758319185108,4.7159853,238.56,238.51,6.66]
[1758319185495,6.75,238.55,238.51,6.66]
[1758319186192,6.75,238.55,238.5,3.79882615]
[1758319186394,6.75,238.55,238.51,6.66]
[1758319186899,4.7159853,238.56,238.51,6.66]
[1758319187592,4.7159853,238.56,238.5,3.79882615]
[1758319187793,4.7159853,238.57,238.51,6.66]
[1758319189596,11.4659853,238.57,238.51,6.66]
[1758319190703,11.4659853,238.56,238.51,6.66]
[1758319190999,4.7159853,238.56,238.5,3.79882615]
[1758319191203,11.4659853,238.56,238.51,6.66]
[1758319191400,4.7159853,238.56,238.5,3.79882615]
[1758319191904,11.4659853,238.56,238.51,6.66]
[1758319192104,4.7159853,238.56,238.5,3.79882615]
[1758319192405,4.7159853,238.57,238.5,3.79882615]
[1758319192705,6.75,238.56,238.51,6.66]
[1758319192905,4.7159853,238.57,238.5,3.79882615]
[1758319193206,11.4659853,238.57,238.51,6.66]
[1758319194903,4.7159853,238.56,238.51,6.66]
[1758319195107,6.75,238.55,238.5,3.79882615]
[1758319195310,6.75,238.55,238.51,6.66]
[1758319196104,6.75,238.55,238.5,3.79882615]
[1758319196803,6.75,238.55,238.51,6.66]
[1758319197009,6.75,238.55,238.5,3.79882615]
[1758319197209,6.75,238.55,238.51,6.66]
[1758319197403,6.75,238.55,238.5,3.79882615]
[1758319197910,6.75,238.55,238.51,6.66]
[1758319198106,6.75,238.55,238.5,3.79882615]
[1758319198312,6.75,238.55,238.51,6.66]
[1758319198608,6.75,238.55,238.51,6.55]
[1758319199011,6.75,238.55,238.5,3.79882615]
[1758319199404,6.75,238.55,238.51,6.83]
[1758319200008,6.75,238.55,238.5,3.79882615]
[1758319200510,10.7602,238.57,238.51,6.83]
[1758319203607,6.99,238.57,238.51,6.83]
[1758319204112,11.7059853,238.57,238.51,6.83]
[1758319205601,11.7059853,238.57,238.51,10.6008]
[1758319207622,11.7059853,238.57,238.52,3.7707]
[1758319207811,6.99,238.56,238.52,10.6007]
[1758319208116,6.99,238.56,238.52,3.7707]
[1758319208311,4.7159853,238.57,238.52,3.7707]
[1758319208510,6.99,238.56,238.52,3.7707]
[1758319208710,6.99,238.56,238.52,10.6007]
[1758319208910,4.7159853,238.57,238.52,6.83]
[1758319209219,4.7159853,238.57,238.5,3.79862615]
[1758319209220,11.7059853,238.56,238.5,0.02752615]
[1758319210311,4.7159853,238.55,238.5,0.02752615]
[1758319210817,6.99,238.54,238.5,0.02752615]
[1758319211013,4.7159853,238.55,238.5,0.02752615]
[1758319211812,6.99,238.54,238.5,0.02752615]
[1758319212013,4.7159853,238.55,238.5,0.02752615]
[1758319212216,6.99,238.54,238.5,0.02752615]
[1758319212816,4.7159853,238.55,238.5,0.02752615]
[1758319212817,4.7159853,238.55,238.51,6.83]
[1758319213213,4.7159853,238.55,238.5,0.02752615]
[1758319213615,6.99,238.54,238.5,0.02752615]
[1758319214013,6.99,238.54,238.51,6.83]
[1758319216115,4.7159853,238.55,238.51,6.83]
[1758319216416,6.99,238.54,238.51,6.83]
[1758319217017,4.7159853,238.55,238.5,0.02752615]
[1758319217220,6.99,238.54,238.5,0.02752615]
[1758319219724,11.7059853,238.54,238.5,0.02752615]
[1758319221728,15.4765853,238.54,238.5,0.02752615]
[1758319224024,8.4865853,238.54,238.5,0.02752615]
[1758319224426,6.99,238.53,238.5,0.02752615]
[1758319226328,11.7059853,238.53,238.5,0.02752615]
[1758319227525,4.7159853,238.53,238.5,0.02752615]
[1758319227731,6.99,238.52,238.5,0.02752615]
[1758319228431,4.7159853,238.53,238.5,0.02752615]
[1758319228620,6.56,238.52,238.5,0.02752615]
[1758319228825,4.7159853,238.53,238.5,0.02752615]
[1758319229023,6.56,238.52,238.5,0.02752615]
[1758319229230,4.7159853,238.53,238.5,0.02752615]
[1758319229532,3.7706,238.54,238.5,0.02752615]
[1758319229533,6.56,238.52,238.5,0.02752615]
[1758319229731,8.4865853,238.54,238.5,0.02752615]
[1758319229919,6.56,238.52,238.5,6.85752615]
[1758319230130,8.4865853,238.54,238.5,0.02752615]
[1758319230425,6.56,238.53,238.5,0.02752615]
[1758319230626,8.4865853,238.54,238.5,0.02752615]
[1758319231524,6.56,238.53,238.5,0.02752615]
[1758319231729,8.4865853,238.54,238.5,0.02752615]
[1758319231923,6.56,238.53,238.5,0.02752615]
[1758319232129,8.4865853,238.54,238.5,0.02752615]
[1758319233131,6.56,238.53,238.5,0.02752615]
[1758319233526,8.4865853,238.54,238.5,0.02752615]
[1758319233830,6.56,238.53,238.5,0.02752615]
[1758319234030,8.4865853,238.54,238.5,0.02752615]
[1758319234433,6.56,238.53,238.5,0.02752615]
[1758319234635,8.4865853,238.54,238.5,0.02752615]
[1758319235132,6.56,238.53,238.5,0.02752615]
[1758319236234,11.2759853,238.53,238.5,0.02752615]
[1758319240636,6.56,238.51,238.5,0.02752615]
[1758319245438,108.66,238.51,238.5,0.02752615]
[1758319251748,6.56,238.51,238.5,0.02752615]
[1758319251945,108.64,238.51,238.5,0.02752615]
[1758319252446,6.56,238.51,238.5,0.02752615]
[1758319252647,108.64,238.51,238.5,0.02752615]
[1758319253852,6.56,238.51,238.5,0.02752615]
[1758319254053,108.64,238.51,238.5,0.02752615]
[1758319254554,6.56,238.51,238.5,0.02752615]
[1758319254754,108.64,238.51,238.5,0.02752615]
[1758319254953,6.56,238.51,238.5,0.02752615]
[1758319255154,108.64,238.51,238.5,0.02752615]
[1758319255955,6.56,238.51,238.5,0.02752615]
[1758319256252,108.64,238.51,238.5,0.02752615]
[1758319256853,6.56,238.51,238.5,0.02752615]
[1758319257056,108.64,238.51,238.5,0.02752615]
[1758319261657,6.56,238.51,238.5,0.02752615]
[1758319262058,44.4,238.51,238.5,0.02752615]
[1758319263859,6.56,238.51,238.5,0.02752615]
[1758319264060,80.34,238.51,238.5,0.02752615]
[1758319264660,6.56,238.51,238.5,0.02752615]
[1758319265562,108.62,238.51,238.5,0.02752615]
[1758319267666,6.56,238.51,238.5,0.02752615]
[1758319267866,11.8759853,238.55,238.51,7.21]
[1758319268167,4.7159853,238.56,238.54,3.7704]
[1758319268362,11.8759853,238.56,238.54,3.7704]
[1758319268863,7.16,238.56,238.54,3.7704]
[1758319270565,7.16,238.56,238.54,10.9804]
[1758319279280,7.16,238.58,238.55,7.21]
[1758319281571,0.72986577,238.59,238.55,7.21]
[1758319281979,7.16,238.58,238.55,7.21]
[1758319282583,106.7159853,238.6,238.56,7.21]
[1758319282779,102.0,238.6,238.56,7.21]
[1758319283183,109.16,238.6,238.56,7.23923364]
[1758319283481,7.16,238.6,238.57,7.21]
[1758319283676,7.16,238.6,238.56,0.02923364]
[1758319283882,7.16,238.61,238.57,7.21]
[1758319284183,106.7159853,238.62,238.57,7.21]
[1758319284883,7.16,238.61,238.57,7.21]
[1758319285075,106.7159853,238.62,238.57,7.21]
[1758319285278,7.16,238.61,238.57,7.21]
[1758319285884,106.7159853,238.62,238.57,7.21]
[1758319286085,7.16,238.61,238.57,7.21]
[1758319286282,106.7159853,238.62,238.57,7.21]
[1758319286483,7.16,238.61,238.57,7.21]
[1758319287081,106.7159853,238.62,238.57,7.21]
[1758319287280,7.16,238.61,238.57,7.21]
[1758319287787,106.7159853,238.62,238.57,7.21]
[1758319288676,6.93,238.61,238.57,7.21]
[1758319289082,106.7159853,238.62,238.57,7.21]
[1758319289486,6.93,238.61,238.57,7.21]
[1758319289783,106.7159853,238.62,238.57,7.21]
[1758319289980,4.7159853,238.62,238.57,7.21]
[1758319290181,6.93,238.6,238.57,7.21]
[1758319291282,6.93,238.6,238.57,7.06]
[1758319292077,101.98,238.61,238.57,7.06]
[1758319292278,6.93,238.6,238.57,7.06]
[1758319292882,101.98,238.61,238.57,7.06]
[1758319293084,4.7159853,238.62,238.57,7.06]
[1758319293278,101.98,238.61,238.57,7.06]
[1758319293789,6.93,238.6,238.57,7.06]
[1758319293983,101.96,238.61,238.57,7.06]
[1758319294184,6.93,238.62,238.56,0.02923364]
[1758319294588,6.93,238.62,238.57,7.06]
[1758319295077,6.93,238.62,238.56,7.08923364]
[1758319295986,6.93,238.62,238.56,10.85933364]
[1758319299291,6.93,238.62,238.57,7.06]
[1758319299687,6.93,238.62,238.56,3.79933364]
[1758319299888,108.89,238.62,238.57,7.06]
[1758319300083,108.87,238.62,238.56,3.79933364]
[1758319300389,108.87,238.62,238.57,7.06]
[1758319300590,108.87,238.62,238.56,3.79933364]
[1758319300792,108.87,238.62,238.57,7.06]
[1758319300992,6.93,238.62,238.56,3.79933364]
[1758319301290,5.44572863,238.63,238.57,10.8299]
[1758319301483,0.72974333,238.63,238.58,7.06]
[1758319301687,0.72974333,238.63,238.57,3.7699]
[1758319302294,0.72974333,238.63,238.58,7.06]
[1758319302495,0.72974333,238.63,238.57,3.7699]
[1758319302690,101.94,238.64,238.57,7.06]
[1758319303796,101.94,238.64,238.59,3.7696]
[1758319304095,6.93,238.63,238.6,7.06]
[1758319307498,6.93,238.63,238.59,3.7696]
[1758319307698,6.93,238.63,238.6,7.06]
[1758319310909,101.92,238.64,238.6,7.06]
[1758319311111,101.92,238.64,238.59,3.7696]
[1758319311604,108.85,238.64,238.59,3.7696]
[1758319312107,108.85,238.64,238.6,7.06]
[1758319312811,108.85,238.64,238.59,3.7696]
[1758319313900,108.85,238.64,238.6,7.06]
[1758319314104,108.85,238.64,238.59,3.7696]
[1758319314507,6.93,238.63,238.6,7.06]
[1758319314711,6.93,238.63,238.59,3.7696]
[1758319314909,6.93,238.63,238.6,7.06]
[1758319315115,6.93,238.63,238.6,10.8295]
[1758319315715,6.93,238.63,238.61,7.06]
[1758319317918,101.9,238.64,238.6,3.7695]
[1758319318118,101.9,238.64,238.61,7.06]
[1758319318418,108.83,238.64,238.61,7.06]
[1758319318806,7.17,238.63,238.61,7.06]
[1758319319010,101.9,238.64,238.6,3.7695]
[1758319319213,7.17,238.63,238.6,10.7995]
[1758319319414,7.17,238.63,238.61,6.87]
[1758319324422,108.84,238.64,238.61,6.87]
[1758319324614,6.94,238.63,238.61,6.87]
[1758319325922,6.94,238.63,238.6,3.7695]
[1758319326219,6.94,238.63,238.61,6.87]
[1758319337428,4.7159853,238.65,238.61,6.87]
[1758319337725,6.94,238.64,238.6,10.6395]
[1758319337923,49.7159853,238.65,238.6,10.6395]
[1758319338123,4.7159853,238.64,238.6,10.6395]
[1758319338327,6.94,238.63,238.6,10.6395]
[1758319340425,6.94,238.63,238.61,6.87]
[1758319348030,49.7159853,238.65,238.61,3.7694]
[1758319348229,6.94,238.64,238.61,3.7694]
[1758319348438,49.7159853,238.65,238.61,3.7694]
[1758319349045,49.7159853,238.65,238.61,10.9094]
[1758319349244,7.08,238.64,238.62,7.14]
[1758319350034,49.7159853,238.65,238.61,10.93764004]
[1758319350430,7.08,238.64,238.61,10.93764004]
[1758319350635,4.7159853,238.65,238.61,10.93764004]
[1758319350936,7.08,238.64,238.61,10.93764004]
[1758319353233,4.7159853,238.66,238.61,3.79764004]
[1758319353434,11.7959853,238.66,238.62,7.14]
[1758319354134,7.08,238.65,238.62,7.14]
[1758319357232,4.7159853,238.66,238.62,7.14]
[1758319357439,7.08,238.65,238.62,7.14]
[1758319358037,4.7159853,238.66,238.62,7.14]
[1758319358240,7.08,238.65,238.62,7.14]
[1758319358439,4.7159853,238.66,238.62,7.14]
[1758319358829,7.08,238.65,238.62,7.14]
[1758319360835,4.7159853,238.66,238.62,7.14]
[1758319361035,7.08,238.65,238.62,7.14]
[1758319361236,4.7159853,238.66,238.62,7.14]
[1758319361637,7.08,238.65,238.62,7.14]
[1758319362343,4.7159853,238.66,238.62,7.14]
[1758319362744,7.08,238.65,238.62,7.14]
[1758319368147,5.44561388,238.67,238.62,7.14]
[1758319368746,5.44561388,238.67,238.61,0.02824004]
[1758319369241,12.52561388,238.67,238.62,7.14]
[1758319369643,5.44561388,238.67,238.62,7.14]
[1758319369837,5.44561388,238.67,238.62,3.7693]
[1758319370043,7.08,238.66,238.63,7.14]
[1758319372047,7.08,238.66,238.62,3.7693]
[1758319372249,7.08,238.66,238.63,7.14]
[1758319372549,7.08,238.66,238.62,3.7693]
[1758319372748,7.08,238.66,238.63,7.14]
[1758319373049,7.08,238.66,238.62,3.7693]
[1758319373248,7.08,238.66,238.63,7.14]
[1758319373449,0.72962858,238.67,238.63,7.14]
[1758319373848,7.08,238.66,238.63,7.14]
[1758319376049,0.72962858,238.67,238.62,7.14]
[1758319376852,0.72962858,238.67,238.61,0.02824004]
[1758319377144,0.72962858,238.67,238.62,7.14]
[1758319377346,0.72962858,238.67,238.61,0.02824004]
[1758319377846,0.72962858,238.67,238.62,7.14]
[1758319378050,0.72962858,238.67,238.61,0.02824004]
[1758319378448,0.72962858,238.67,238.62,6.85]
[1758319378947,0.72962858,238.67,238.61,0.02824004]
[1758319379348,7.36962858,238.67,238.62,6.73]
[1758319379551,7.36962858,238.67,238.61,6.75824004]
[1758319382654,12.08561388,238.67,238.61,6.75824004]
[1758319383350,6.64,238.65,238.62,6.73]
[1758319386457,6.64,238.65,238.61,0.02824004]
[1758319386757,6.64,238.65,238.62,6.73]
[1758319388457,6.64,238.65,238.61,0.02824004]
[1758319388657,6.64,238.65,238.62,6.73]
[1758319389559,5.44561388,238.67,238.62,6.73]
[1758319389759,5.44561388,238.67,238.61,0.02824004]
[1758319390160,12.08561388,238.67,238.61,6.75824004]
[1758319397364,11.3559853,238.67,238.61,6.75824004]
[1758319397562,11.3559853,238.67,238.61,10.52764004]
[1758319404161,4.7159853,238.67,238.61,10.52764004]
[1758319404367,11.3559853,238.67,238.61,10.52764004]
[1758319410778,11.3559853,238.67,238.62,3.7693]
[1758319411581,7.02,238.66,238.63,7.16]
[1758319412981,4.7159853,238.67,238.63,7.16]
[1758319413181,4.7159853,238.67,238.62,3.7693]
[1758319413473,11.7359853,238.67,238.62,3.7693]